fUST/lending_fUST_20250722
["ID","MTS","AMOUNT","RATE_DAILY","PERIOD"]
[374028838,1753187451282,-849.21,0.00021139,2]
[374028840,1753187451292,-460.0,0.00021139,2]
[374028842,1753187451302,-460.0,0.00021139,2]
[374028844,1753187451311,-1393.93,0.00021139,2]
[374028846,1753187451320,-500.0,0.00021207,2]
[374028848,1753187451330,-4466.77914371,0.00021211,2]
[374028850,1753187451339,-1695.29332585,0.00021314,5]
[374028852,1753187451349,-494.21,0.00021409,2]
[374028854,1753187451358,-533.63,0.00021409,2]
[374028856,1753187451367,-460.0,0.00021409,2]
[374028858,1753187451376,-1368.29,0.00021409,2]
[374028860,1753187451386,-460.0,0.00021409,2]
[374028862,1753187451395,-511.68,0.00021409,2]
[374028864,1753187451404,-434.98661808,0.0002141,2]
[374028866,1753187451413,-1291.58,0.00021411,2]
[374028868,1753187451423,-1042.81,0.00021411,2]
[374028870,1753187451432,-460.0,0.00021411,2]
[374028872,1753187451441,-460.0,0.00021412,2]
[374028874,1753187451450,-460.0,0.00021413,2]
[374028876,1753187451459,-14098.81,0.00021413,2]
[374028878,1753187451468,-849.21,0.00021413,2]
[374028880,1753187451478,-591.17,0.00021413,2]
[374028883,1753187451497,-460.0,0.00021413,2]
[374028885,1753187451508,-1393.93,0.00021413,2]
[374028887,1753187451518,-1695.29332585,0.00021555,5]
[374028889,1753187451528,-223.0315306,0.00021573,2]
[374028891,1753187451537,-494.21,0.00021683,2]
[374028893,1753187451547,-533.63,0.00021683,2]
[374028895,1753187451557,-460.0,0.00021683,2]
[374028897,1753187451568,-1368.29,0.00021683,2]
[374028899,1753187451578,-460.0,0.00021683,2]
[374028902,1753187451587,-511.68,0.00021683,2]
[374028904,1753187451597,-1291.58,0.00021685,2]
[374028906,1753187451607,-1042.81,0.00021685,2]
[374028908,1753187451617,-391.86615876,0.00021685,2]
[374028910,1753187451626,-460.0,0.00021686,2]
[374028912,1753187451641,-460.0,0.00021687,2]
[374028914,1753187451651,-14098.81,0.00021687,2]
[374028916,1753187451661,-849.21,0.00021687,2]
[374028918,1753187451671,-460.0,0.00021687,2]
[374028920,1753187451682,-1393.93,0.00021687,2]
[374028922,1753187451691,-3358.78531256,0.00021706,4]
[374028924,1753187451700,-1150.51810467,0.00021721,2]
[374028926,1753187451711,-10526.46560872,0.00021739,2]
[374028928,1753187451721,-1695.29332585,0.00021797,6]
[374028930,1753187451731,-500.8524135,0.000219,2]
[374028932,1753187451740,-17093.88750281,0.00021916,2]
[374028934,1753187451750,-494.21,0.00021957,2]
[374028936,1753187451760,-533.63,0.00021957,2]
[374028938,1753187451769,-305.59,0.00021957,2]
[374028940,1753187451779,-1368.29,0.00021957,2]
[374028942,1753187451788,-460.0,0.00021957,2]
[374028944,1753187451798,-511.68,0.00021957,2]
[374028946,1753187451807,-1291.58,0.00021959,2]
[374028949,1753187451817,-1042.81,0.00021959,2]
[374028951,1753187451826,-460.0,0.0002196,2]
[374028953,1753187451836,-460.0,0.00021961,2]
[374028955,1753187451846,-14098.81,0.00021961,2]
[374028957,1753187451855,-849.21,0.00021961,2]
[374028959,1753187451864,-334.20704896,0.00021961,2]
[374028961,1753187451874,-1393.93,0.00021961,2]
[374028963,1753187451883,-10292.30738269,0.00022,2]
[374028965,1753187451892,-434.92,0.00022,7]
[374028967,1753187451902,-4926.87,0.00022,7]
[374028969,1753187451912,-1206.67,0.00022,7]
[374028971,1753187451922,-22426.13,0.00022,2]
[374028973,1753187451931,-1000.0,0.00022,2]
[374028975,1753187451941,-1695.29332585,0.00022038,6]
[374028977,1753187451950,-494.21,0.00022231,2]
[374028979,1753187451961,-533.63,0.00022231,2]
[374028981,1753187451971,-1368.29,0.00022231,2]
[374028983,1753187451981,-398.40795944,0.00022231,2]
[374028985,1753187451990,-511.68,0.00022231,2]
[374028987,1753187451999,-1291.58,0.00022233,2]
[374028989,1753187452008,-1042.81,0.00022233,2]
[374028991,1753187452018,-460.0,0.00022234,2]
[374028993,1753187452027,-324.22467185,0.00022235,2]
[374028996,1753187452037,-14098.81,0.00022235,2]
[374028998,1753187452046,-849.21,0.00022235,2]
[374029000,1753187452056,-1393.93,0.00022235,2]
[374029001,1753187452065,-1695.29332585,0.00022279,6]
[374029004,1753187452075,-2120.56,0.00022465,2]
[374029006,1753187452085,-494.21,0.00022505,2]
[374029008,1753187452095,-533.63,0.00022505,2]
[374029010,1753187452104,-1368.29,0.00022505,2]
[374029012,1753187452119,-511.68,0.00022505,2]
[374029014,1753187452132,-1291.58,0.00022507,2]
[374029016,1753187452143,-1042.81,0.00022507,2]
[374029018,1753187452153,-460.0,0.00022508,2]
[374029020,1753187452162,-14098.81,0.00022509,2]
[374029022,1753187452171,-849.21,0.00022509,2]
[374029024,1753187452180,-1393.93,0.00022509,2]
[374029026,1753187452190,-1695.29332585,0.00022521,7]
[374029028,1753187452199,-532.38,0.00022544,7]
[374029030,1753187452209,-557.75,0.00022547,7]
[374029032,1753187452218,-214.6393183,0.0002259,7]
[374029034,1753187452227,-532.38,0.00022644,2]
[374029037,1753187452238,-557.75,0.00022647,7]
[374029039,1753187452248,-532.38,0.00022744,6]
[374029041,1753187452258,-557.75,0.00022747,4]
[374029043,1753187452266,-1695.29332585,0.00022762,7]
[374029045,1753187452275,-494.21,0.00022779,2]
[374029047,1753187452284,-533.63,0.00022779,2]
[374029049,1753187452294,-1368.29,0.00022779,2]
[374029051,1753187452303,-511.68,0.00022779,2]
[374029053,1753187452313,-1291.58,0.00022781,2]
[374029055,1753187452322,-1042.81,0.00022781,2]
[374029057,1753187452332,-460.0,0.00022782,2]
[374029059,1753187452342,-14098.81,0.00022783,2]
[374029061,1753187452351,-849.21,0.00022783,2]
[374029063,1753187452361,-1393.93,0.00022783,2]
[374029065,1753187452371,-532.38,0.00022844,2]
[374029067,1753187452381,-557.77,0.00022847,6]
[374029069,1753187452390,-231.28369723,0.00022942,2]
[374029071,1753187452400,-532.38,0.00022944,6]
[374029073,1753187452410,-1110.02,0.00023,2]
[374029075,1753187452420,-1000.0,0.00023,4]
[374029077,1753187452430,-526.07605158,0.00023,3]
[374029080,1753187452440,-214.6393183,0.00023,3]
[374029082,1753187452449,-160.0,0.00023,2]
[374029084,1753187452459,-160.0,0.00023,3]
[374029086,1753187452468,-1695.29332585,0.00023003,8]
[374029088,1753187452476,-532.38,0.00023044,3]
[374029090,1753187452485,-494.21,0.00023053,2]
[374029092,1753187452495,-533.63,0.00023053,2]
[374029094,1753187452504,-1368.29,0.00023053,2]
[374029096,1753187452514,-511.68,0.00023053,2]
[374029098,1753187452523,-1291.58,0.00023055,2]
[374029100,1753187452533,-1042.81,0.00023055,2]
[374029102,1753187452542,-460.0,0.00023056,2]
[374029104,1753187452552,-14098.81,0.00023057,2]
[374029106,1753187452562,-849.21,0.00023057,2]
[374029108,1753187452576,-1393.93,0.00023057,2]
[374029111,1753187452586,-532.38,0.00023144,5]
[374029112,1753187452596,-1150.51810467,0.00023228,2]
[374029115,1753187452606,-532.38,0.00023244,4]
[374029126,1753187452616,-1695.29332585,0.00023245,8]
[374029128,1753187452742,-22426.13,0.000233,2]
[374029130,1753187452752,-494.31,0.00023327,2]
[374029132,1753187452761,-533.79713749,0.00023327,2]
[374029134,1753187452770,-1368.3699,0.00023327,2]
[374029136,1753187452779,-511.83,0.00023327,2]
[374029138,1753187452789,-1291.58,0.00023329,2]
[374029140,1753187452798,-1042.81922855,0.00023329,2]
[374029142,1753187452808,-247.18,0.0002333,2]
[374029144,1753187452817,-14098.83509472,0.00023331,2]
[374029146,1753187452826,-849.33,0.00023331,2]
[374029148,1753187452836,-1393.95728883,0.00023331,2]
[374029150,1753187452845,-532.38,0.00023344,5]
[374029152,1753187452855,-4926.87,0.000234,7]
[374029154,1753187452864,-1206.67,0.000234,7]
[374029156,1753187452874,-168.0,0.00023443,2]
[374029158,1753187452883,-532.39304946,0.00023444,7]
[374029160,1753187452892,-1695.29332585,0.00023486,9]
[374029162,1753187452902,-1291.66,0.00023603,2]
[374029164,1753187452911,-1695.29332585,0.00023728,9]
[374029166,1753187452921,-160.0,0.00023738,3]
[374029168,1753187452930,-168.0,0.0002389,2]
[374029170,1753187452939,-434.92,0.000239,7]
[374029172,1753187452948,-1421.01089699,0.000239,2]
[374029174,1753187452958,-632.89680776,0.00023913,2]
[374029176,1753187452968,-1695.29332585,0.00023969,10]
[374029178,1753187452977,-1000.0,0.00024,6]
[374029180,1753187452986,-526.07605158,0.00024,7]
[374029182,1753187452995,-160.0,0.00024,7]
[374029184,1753187453004,-632.89680776,0.00024013,2]
[374029186,1753187453014,-632.89680776,0.00024113,2]
[374029188,1753187453023,-2157.0,0.00024136,2]
[374029191,1753187453033,-1695.29332585,0.0002421,10]
[374029193,1753187453042,-157.0,0.00024274,12]
[374029194,1753187453052,-239.84119403,0.00024311,2]
[374029197,1753187453062,-168.0,0.00024446,2]
[374029199,1753187453071,-1695.29332585,0.00024452,11]
[374029201,1753187453081,-168.0,0.00024467,2]
[374029203,1753187453090,-22426.13,0.000245,2]
[374029205,1753187453100,-229.28271726,0.00024531,20]
[374029207,1753187453110,-168.0,0.00024564,2]
[374029209,1753187453120,-1695.29332585,0.00024693,11]
[374029211,1753187453130,-428.0,0.0002472,2]
[374029213,1753187453139,-4111.37318512,0.00024751,2]
[374029215,1753187453149,-174.614708,0.00024777,8]
[374029217,1753187453158,-4926.87,0.000248,7]
[374029219,1753187453168,-5875.5319904,0.000248,2]
[374029221,1753187453176,-1436.75578497,0.00024861,2]
[374029223,1753187453186,-1206.67,0.000249,7]
[374029225,1753187453195,-432221.12295,0.000249,2]
[374029227,1753187453205,-1436.75578497,0.00024901,2]
[374029229,1753187453214,-1695.29332585,0.00024934,12]
[374029231,1753187453224,-1436.75578497,0.00024941,2]
[374029233,1753187453233,-500.0,0.00024973,2]
[374029235,1753187453242,-1436.75578497,0.00024981,2]
[374029237,1753187453252,-1478.54272644,0.00024999,7]
[374029239,1753187453261,-1600.15,0.00024999,10]
[374029241,1753187453270,-2000.0,0.00024999,10]
[374029243,1753187453280,-2000.0,0.00024999,10]
[374029245,1753187453289,-2000.0,0.00024999,10]
[374029247,1753187453299,-2000.0,0.00024999,10]
[374029249,1753187453309,-2000.0,0.00024999,10]
[374029251,1753187453319,-2000.0,0.00024999,10]
[374029253,1753187453328,-160.0,0.00025,7]
[374029255,1753187453338,-2000.0,0.00025,2]
[374029257,1753187453347,-1000.0,0.00025,6]
[374029259,1753187453356,-150.0,0.00025,10]
[374029261,1753187453366,-2037.22095749,0.00025,14]
[374029263,1753187453376,-606528.27192555,0.00025,30]
[374029265,1753187453386,-1436.75578497,0.00025021,2]
[374029267,1753187453395,-4111.37318512,0.00025043,2]
[374029269,1753187453405,-1436.75578497,0.00025061,2]
[374029271,1753187453414,-428.0,0.00025096,2]
[374029273,1753187453423,-1436.75578497,0.00025101,2]
[374029276,1753187453441,-1436.75578497,0.00025141,2]
[374029278,1753187453453,-1695.29332585,0.00025176,12]
[374029280,1753187453463,-1436.75578497,0.00025181,2]
[374029282,1753187453475,-627.9137742,0.00025183,2]
[374029285,1753187453485,-27468.64746033,0.00025183,2]
[374029286,1753187453495,-168.0,0.00025186,2]
[374029289,1753187453505,-160.0,0.00025192,4]
[374029291,1753187453515,-161.10523437,0.00025192,5]
[374029293,1753187453524,-168.0,0.00025193,2]
[374029295,1753187453534,-160.0,0.000252,3]
[374029297,1753187453545,-2120.56,0.00025205,4]
[374029299,1753187453555,-4466.77914371,0.0002522,2]
[374029301,1753187453564,-1436.75578497,0.00025221,2]
[374029303,1753187453574,-173.798195,0.00025272,3]
[374029305,1753187453585,-501.40390994,0.00025273,2]
[374029307,1753187453595,-2478.53,0.00025273,10]
[374029309,1753187453605,-2065.45,0.00025273,10]
[374029311,1753187453615,-200.0,0.0002528,13]
[374029313,1753187453626,-500.0,0.0002528,20]
[374029315,1753187453637,-500.0,0.0002528,14]
[374029317,1753187453650,-151.0,0.0002528,20]
[374029319,1753187453659,-151.0,0.0002528,20]
[374029321,1753187453669,-151.0,0.0002528,20]
[374029323,1753187453678,-444.0,0.0002528,2]
[374029325,1753187453689,-151.0,0.0002528,20]
[374029327,1753187453699,-151.0,0.0002528,20]
[374029329,1753187453708,-151.0,0.0002528,20]
[374029331,1753187453718,-151.0,0.0002528,20]
[374029333,1753187453728,-456.0,0.0002528,20]
[374029335,1753187453739,-151.0,0.0002528,20]
[374029337,1753187453749,-2204.37520976,0.00025283,2]
[374029339,1753187453758,-165.547102,0.00025283,7]
[374029341,1753187453768,-165.547102,0.00025283,7]
[374029343,1753187453777,-165.547102,0.00025283,7]
[374029345,1753187453787,-165.547102,0.00025283,7]
[374029347,1753187453797,-165.547102,0.00025283,7]
[374029349,1753187453806,-165.547102,0.00025283,7]
[374029351,1753187453816,-165.547102,0.00025283,7]
[374029353,1753187453826,-165.547102,0.00025283,7]
[374029355,1753187453836,-165.547102,0.00025283,7]
[374029357,1753187453846,-165.547102,0.00025283,7]
[374029359,1753187453857,-165.547102,0.00025283,7]
[374029361,1753187453867,-165.547102,0.00025283,7]
[374029363,1753187453876,-165.547102,0.00025283,7]
[374029365,1753187453886,-165.547102,0.00025283,7]
[374029367,1753187453895,-165.547102,0.00025283,7]
[374029369,1753187453905,-165.547102,0.00025283,7]
[374029371,1753187453915,-165.547102,0.00025283,7]
[374029373,1753187453924,-165.547102,0.00025283,7]
[374029375,1753187453934,-165.547102,0.00025283,7]
[374029377,1753187453943,-165.547103,0.00025283,7]
[374029379,1753187453953,-151.0,0.00025283,7]
[374029381,1753187453962,-151.0,0.00025283,7]
[374029383,1753187453972,-221.186199,0.00025283,7]
[374029385,1753187453982,-228.384808,0.00025283,7]
[374029387,1753187453992,-151.0,0.00025283,7]
[374029389,1753187454002,-151.0,0.00025283,7]
[374029391,1753187454012,-151.0,0.00025283,7]
[374029393,1753187454022,-151.0,0.00025283,7]
[374029395,1753187454031,-151.0,0.00025283,7]
[374029397,1753187454041,-151.0,0.00025283,7]
[374029399,1753187454051,-151.0,0.00025283,7]
[374029401,1753187454061,-197.799072,0.00025283,7]
[374029404,1753187454075,-197.799072,0.00025283,7]
[374029406,1753187454085,-197.799072,0.00025283,7]
[374029408,1753187454094,-197.799072,0.00025283,7]
[374029410,1753187454104,-197.799072,0.00025283,7]
[374029412,1753187454114,-197.799072,0.00025283,7]
[374029414,1753187454124,-197.799072,0.00025283,7]
[374029416,1753187454134,-197.799072,0.00025283,7]
[374029418,1753187454144,-197.799072,0.00025283,7]
[374029420,1753187454154,-197.799072,0.00025283,7]
[374029422,1753187454163,-197.799072,0.00025283,7]
[374029424,1753187454173,-197.799072,0.00025283,7]
[374029426,1753187454183,-197.799072,0.00025283,7]
[374029428,1753187454193,-197.799072,0.00025283,7]
[374029430,1753187454202,-197.799072,0.00025283,7]
[374029432,1753187454212,-197.799072,0.00025283,7]
[374029434,1753187454221,-197.799072,0.00025283,7]
[374029436,1753187454231,-197.799072,0.00025283,7]
[374029438,1753187454240,-197.799072,0.00025283,7]
[374029440,1753187454250,-197.799072,0.00025283,7]
[374029442,1753187454260,-151.0,0.00025284,7]
[374029444,1753187454270,-151.441594,0.00025284,7]
[374029446,1753187454280,-151.0,0.00025284,7]
[374029448,1753187454290,-151.0,0.00025284,7]
[374029450,1753187454300,-151.0,0.00025284,7]
[374029452,1753187454310,-151.0,0.00025284,7]
[374029454,1753187454319,-151.0,0.00025284,7]
[374029456,1753187454329,-151.0,0.00025284,7]
[374029458,1753187454338,-151.0,0.00025284,7]
[374029460,1753187454348,-151.0,0.00025284,7]
[374029462,1753187454357,-151.0,0.00025284,7]
[374029463,1753187454366,-151.0,0.00025284,7]
[374029465,1753187454376,-151.0,0.00025284,7]
[374029467,1753187454386,-151.0,0.00025284,7]
[374029470,1753187454396,-151.0,0.00025284,7]
[374029471,1753187454405,-294.264849,0.00025284,7]
[374029473,1753187454415,-151.0,0.00025284,7]
[374029475,1753187454424,-151.0,0.00025284,7]
[374029478,1753187454434,-151.0,0.00025284,7]
[374029479,1753187454444,-151.0,0.00025284,7]
[374029481,1753187454453,-151.0,0.00025284,7]
[374029483,1753187454463,-151.0,0.00025284,7]
[374029485,1753187454472,-151.0,0.00025284,7]
[374029487,1753187454482,-151.0,0.00025284,7]
[374029489,1753187454491,-219.622368,0.00025284,7]
[374029491,1753187454501,-151.0,0.00025284,7]
[374029493,1753187454510,-151.0,0.00025284,7]
[374029495,1753187454519,-151.0,0.00025284,7]
[374029498,1753187454531,-151.0,0.00025284,7]
[374029500,1753187454540,-151.0,0.00025284,7]
[374029501,1753187454550,-151.0,0.00025284,7]
[374029503,1753187454561,-151.0,0.00025284,7]
[374029505,1753187454570,-275.215954,0.00025284,7]
[374029507,1753187454580,-151.0,0.00025284,7]
[374029509,1753187454590,-151.0,0.00025284,7]
[374029511,1753187454600,-151.0,0.00025284,7]
[374029513,1753187454609,-151.0,0.00025284,7]
[374029515,1753187454619,-151.0,0.00025284,7]
[374029528,1753187454739,-151.0,0.00025284,7]
[374029530,1753187454750,-151.0,0.00025284,7]
[374029532,1753187454761,-191.224212,0.00025284,7]
[374029534,1753187454770,-191.224212,0.00025284,7]
[374029536,1753187454780,-176.747208,0.00025284,7]
[374029538,1753187454789,-191.224212,0.00025284,7]
[374029540,1753187454799,-191.224212,0.00025284,7]
[374029542,1753187454810,-191.224212,0.00025284,7]
[374029544,1753187454820,-191.224212,0.00025284,7]
[374029546,1753187454829,-191.224212,0.00025284,7]
[374029548,1753187454839,-191.224212,0.00025284,7]
[374029550,1753187454849,-191.224212,0.00025284,7]
[374029552,1753187454859,-191.224212,0.00025284,7]
[374029554,1753187454869,-191.224212,0.00025284,7]
[374029556,1753187454878,-191.224212,0.00025284,7]
[374029558,1753187454887,-191.224212,0.00025284,7]
[374029560,1753187454897,-191.224212,0.00025284,7]
[374029562,1753187454907,-191.224212,0.00025284,7]
[374029564,1753187454916,-191.224212,0.00025284,7]
[374029566,1753187454926,-191.224212,0.00025284,7]
[374029568,1753187454935,-191.224212,0.00025284,7]
[374029570,1753187454945,-191.224212,0.00025284,7]
[374029572,1753187454955,-191.224216,0.00025284,7]
[374029574,1753187454964,-211.537539,0.00025284,7]
[374029576,1753187454974,-151.0,0.00025284,7]
[374029578,1753187454984,-259.225569,0.00025284,7]
[374029580,1753187454993,-210.120944,0.00025284,7]
[374029582,1753187455003,-151.0,0.00025284,7]
[374029584,1753187455013,-151.0,0.00025284,7]
[374029586,1753187455022,-151.0,0.00025284,7]
[374029588,1753187455032,-151.0,0.00025284,7]
[374029590,1753187455041,-151.0,0.00025284,7]
[374029592,1753187455051,-151.0,0.00025284,7]
[374029594,1753187455061,-151.0,0.00025284,7]
[374029596,1753187455070,-151.0,0.00025284,7]
[374029598,1753187455080,-151.0,0.00025284,7]
[374029600,1753187455089,-151.0,0.00025284,7]
[374029602,1753187455099,-151.0,0.00025284,7]
[374029604,1753187455109,-151.0,0.00025284,7]
[374029606,1753187455118,-151.0,0.00025284,7]
[374029608,1753187455127,-151.0,0.00025284,7]
[374029610,1753187455137,-223.416699,0.00025284,7]
[374029612,1753187455146,-151.0,0.00025284,7]
[374029614,1753187455156,-151.0,0.00025284,7]
[374029616,1753187455165,-151.0,0.00025284,7]
[374029618,1753187455174,-151.0,0.00025284,7]
[374029619,1753187455184,-151.0,0.00025284,7]
[374029621,1753187455193,-207.762788,0.00025284,7]
[374029623,1753187455203,-151.0,0.00025287,7]
[374029625,1753187455212,-186.647373,0.00025287,7]
[374029627,1753187455222,-151.0,0.00025287,7]
[374029630,1753187455231,-151.0,0.00025287,7]
[374029631,1753187455241,-151.0,0.00025287,7]
[374029633,1753187455250,-151.0,0.00025287,7]
[374029635,1753187455259,-151.0,0.00025287,7]
[374029637,1753187455269,-151.0,0.00025287,7]
[374029639,1753187455279,-151.0,0.00025287,7]
[374029641,1753187455288,-151.0,0.00025287,7]
[374029643,1753187455298,-151.0,0.00025287,7]
[374029645,1753187455309,-194.004715,0.00025287,7]
[374029647,1753187455318,-152.378722,0.00025287,7]
[374029649,1753187455328,-151.0,0.00025287,7]
[374029651,1753187455337,-151.0,0.00025287,7]
[374029653,1753187455347,-151.0,0.00025287,7]
[374029655,1753187455356,-151.0,0.00025287,7]
[374029657,1753187455365,-151.0,0.00025287,7]
[374029659,1753187455375,-151.0,0.00025287,7]
[374029661,1753187455384,-151.0,0.00025287,7]
[374029663,1753187455393,-151.0,0.00025287,7]
[374029665,1753187455403,-151.0,0.00025287,7]
[374029667,1753187455414,-151.0,0.00025287,7]
[374029669,1753187455423,-151.0,0.00025287,7]
[374029671,1753187455432,-219.322171,0.00025287,7]
[374029673,1753187455442,-151.0,0.00025287,7]
[374029675,1753187455451,-162.493692,0.00025287,7]
[374029677,1753187455460,-162.493692,0.00025287,7]
[374029679,1753187455469,-162.493692,0.00025287,7]
[374029681,1753187455478,-162.493692,0.00025287,7]
[374029683,1753187455488,-162.493692,0.00025287,7]
[374029685,1753187455497,-162.493692,0.00025287,7]
[374029687,1753187455507,-162.493692,0.00025287,7]
[374029689,1753187455517,-162.493692,0.00025287,7]
[374029691,1753187455527,-162.493692,0.00025287,7]
[374029693,1753187455536,-162.493692,0.00025287,7]
[374029695,1753187455545,-162.493692,0.00025287,7]
[374029697,1753187455555,-162.493692,0.00025287,7]
[374029698,1753187455564,-162.493692,0.00025287,7]
[374029700,1753187455574,-162.493692,0.00025287,7]
[374029702,1753187455583,-162.493692,0.00025287,7]
[374029704,1753187455593,-162.493692,0.00025287,7]
[374029706,1753187455602,-162.493692,0.00025287,7]
[374029708,1753187455612,-162.493692,0.00025287,7]
[374029709,1753187455621,-162.493692,0.00025287,7]
[374029710,1753187455631,-162.493699,0.00025287,7]
[374029711,1753187455642,-337.476289,0.00025287,7]
[374029712,1753187455651,-337.476289,0.00025287,7]
[374029713,1753187455660,-337.476289,0.00025287,7]
[374029714,1753187455669,-337.476289,0.00025287,7]
[374029715,1753187455680,-337.476289,0.00025287,7]
[374029716,1753187455689,-337.476289,0.00025287,7]
[374029717,1753187455698,-337.476289,0.00025287,7]
[374029718,1753187455707,-337.476289,0.00025287,7]
[374029719,1753187455719,-337.476289,0.00025287,7]
[374029720,1753187455729,-337.476289,0.00025287,7]
[374029721,1753187455738,-337.476289,0.00025287,7]
[374029722,1753187455748,-337.476289,0.00025287,7]
[374029723,1753187455757,-337.476289,0.00025287,7]
[374029724,1753187455766,-337.476289,0.00025287,7]
[374029725,1753187455775,-337.476289,0.00025287,7]
[374029726,1753187455784,-337.476289,0.00025287,7]
[374029727,1753187455794,-337.476289,0.00025287,7]
[374029728,1753187455804,-337.476289,0.00025287,7]
[374029729,1753187455814,-337.476289,0.00025287,7]
[374029730,1753187455823,-337.476284,0.00025287,7]
[374029731,1753187455832,-428.0,0.00025288,2]
[374029732,1753187455841,-231.06963584,0.0002529,30]
[374029733,1753187455850,-231.06963584,0.0002529,10]
[374029734,1753187455859,-500.0,0.0002529,2]
[374029735,1753187455868,-500.0,0.0002529,2]
[374029737,1753187455877,-173.798195,0.0002529,20]
[374029739,1753187455887,-173.798195,0.00025295,14]
[374029741,1753187455896,-173.798195,0.00025298,2]
[374029743,1753187455906,-2000.0,0.000253,2]
[374029745,1753187455915,-160.0,0.000253,7]
[374029747,1753187455924,-231.06963584,0.000253,7]
[374029749,1753187455934,-434.92,0.000253,7]
[374029751,1753187455943,-151.0,0.0002532,7]
[374029753,1753187455952,-151.0,0.0002532,7]
[374029755,1753187455962,-151.0,0.0002532,7]
[374029756,1753187455971,-151.0,0.0002532,7]
[374029758,1753187455981,-151.0,0.0002532,7]
[374029760,1753187455990,-151.0,0.0002532,7]
[374029762,1753187455999,-151.0,0.0002532,7]
[374029764,1753187456009,-151.0,0.0002532,7]
[374029766,1753187456019,-151.0,0.0002532,7]
[374029768,1753187456029,-151.0,0.0002532,7]
[374029770,1753187456037,-151.0,0.0002532,7]
[374029772,1753187456047,-151.0,0.0002532,7]
[374029774,1753187456056,-447.992512,0.0002532,7]
[374029776,1753187456066,-447.992512,0.0002532,7]
[374029778,1753187456075,-447.992512,0.0002532,7]
[374029780,1753187456085,-447.992512,0.0002532,7]
[374029782,1753187456094,-447.992512,0.0002532,7]
[374029784,1753187456103,-447.992512,0.0002532,7]
[374029786,1753187456113,-447.992512,0.0002532,7]
[374029788,1753187456122,-447.992512,0.0002532,7]
[374029790,1753187456132,-447.992512,0.0002532,7]
[374029792,1753187456142,-447.992512,0.0002532,7]
[374029794,1753187456151,-447.992512,0.0002532,7]
[374029796,1753187456160,-447.992512,0.0002532,7]
[374029798,1753187456169,-447.992512,0.0002532,7]
[374029800,1753187456179,-447.992512,0.0002532,7]
[374029802,1753187456188,-447.992512,0.0002532,7]
[374029804,1753187456197,-447.992512,0.0002532,7]
[374029807,1753187456207,-447.992512,0.0002532,7]
[374029808,1753187456216,-447.992512,0.0002532,7]
[374029810,1753187456226,-447.992512,0.0002532,7]
[374029813,1753187456236,-447.992511,0.0002532,7]
[374029814,1753187456246,-151.0,0.0002532,7]
[374029816,1753187456255,-151.0,0.0002532,7]
[374029818,1753187456264,-151.0,0.0002532,7]
[374029820,1753187456273,-151.0,0.0002532,7]
[374029822,1753187456282,-151.0,0.0002532,7]
[374029824,1753187456291,-151.0,0.0002532,7]
[374029826,1753187456301,-151.0,0.0002532,7]
[374029828,1753187456311,-271.936013,0.0002532,7]
[374029830,1753187456320,-151.49382,0.0002532,7]
[374029832,1753187456329,-151.0,0.0002532,7]
[374029834,1753187456339,-151.0,0.0002532,7]
[374029836,1753187456348,-151.0,0.0002532,7]